Cogmind - Beta 13 @@@ ROGUE MODE // 2024.05.09 @ 19:08:54 Player: trisiak Result: Destroyed by G-50 Soldier with Heavy Laser Performance ------------- Evolutions (4) 2000 Regions Visited (7) 1400 Robots Destroyed (78) 390 Value Destroyed (3267) 3267 Prototype IDs (18) 360 Alien Tech Used (0) 0 Bonus (1095) 1095 TOTAL SCORE: 8512 Bonus ------- High Alert Combat Kills 91 Follower Combat Kills 1055 Friendly Fire -51 Cogmind --------- Core Integrity 0/850 Matter 264/300 Energy 176/185 System Corruption 0% Temperature Warning (390) Movement Immobile (Siege) Location -6/Cetus Parts ------- > --- POWER (1) -------- Antimatter-Fusion Reactor > --- PROPULSION (2) --- Centrium Heavy Treads > --- UTILITY (9) ------ Armored Scrap Engine Advanced Heat Sink Large Storage Unit Advanced Signal Interpreter Target Analyzer Armor Integrity Analyzer Centrium Medium Armor Plating > --- WEAPON (3) ------- Plasma Rifle Advanced Variable Charge Gun Advanced KE Penetrator > --- INVENTORY (15) --- Quantum Reactor Centrium Heavy Treads Carbon-fiber Leg Flexi-carbon Leg Flexi-carbon Leg Large Storage Unit Advanced Sensor Array Advanced Signal Interpreter Improved Terrain Scanner Improved System Restoration Module Drone Bay (2/2) Multitool Peak State ------------ > --- POWER ------------ Antimatter-Fusion Reactor > --- PROPULSION ------- Centrium Heavy Treads > --- UTILITY ---------- Armored Scrap Engine Large Storage Unit Advanced Signal Interpreter Target Analyzer Armor Integrity Analyzer Centrium Medium Armor Plating Centrium Medium Armor Plating Advanced Hacking Suite > --- WEAPON ----------- Plasma Rifle Advanced Variable Charge Gun Advanced KE Penetrator > --- INVENTORY -------- Quantum Reactor Centrium Heavy Treads Carbon-fiber Leg Flexi-carbon Leg Flexi-carbon Leg Advanced Heat Sink Large Storage Unit Energy Well Advanced Sensor Array Advanced Signal Interpreter Improved Terrain Scanner Improved System Restoration Module Drone Bay Multitool [Rating: 108] Favorites ----------- Power Light Nuclear Core Engine Light Ion Engine Power Core Light Nuclear Core Reactor Cold Fusion Reactor Propulsion Aluminum Leg Treads Light Treads Leg Aluminum Leg Wheel Wheel Utility Medium Storage Unit Device Experimental Sensor Array Storage Medium Storage Unit Processor Advanced Signal Interpreter Hackware Advanced Hacking Suite Protection Hardened Medium Armor Plating Weapon Battle Cannon Energy Gun Constructs Energy Cannon Cooled Plasma Cannon Ballistic Gun Coil Gun Ballistic Cannon Battle Cannon Launcher Grenade Launcher Special Weapon Mining Laser Build | -11 -10 -10 -10 -8 -6 -6 -6 ------- Run | Yrd Mat Min Sub Rec Fac Ext Cet Slots Evolved 8 | . . . . . 8 . . Power . | . . . . . . . . Propulsion . | . . . . . . . . Utility 7 | . . . . . 7 . . Weapon 1 | . . . . . 1 . . Parts Attached 139 | 2 3 9 15 6 34 42 28 Power 13 | . . 1 2 . 3 5 2 Engine 6 | . . 1 1 . 2 1 1 Core 3 | . . . 1 . . 2 . Reactor 4 | . . . . . 1 2 1 Propulsion 16 | . 2 . 2 2 4 1 5 Treads 7 | . . . . 1 3 1 2 Leg 7 | . 2 . 2 . . . 3 Wheel 2 | . . . . 1 1 . . Hover . | . . . . . . . . Flight . | . . . . . . . . Utility 80 | 1 1 3 8 4 21 25 17 Device 46 | 1 . 3 7 2 10 16 7 Storage 5 | . 1 . . 1 1 1 1 Processor 6 | . . . . . 3 2 1 Hackware 2 | . . . . . 1 . 1 Protection 21 | . . . 1 1 6 6 7 Artifact . | . . . . . . . . Weapon 30 | 1 . 5 3 . 6 11 4 Energy Gun 4 | . . . . . . 2 2 Energy Cannon 4 | . . . . . 1 3 . Ballistic Gun 12 | 1 . 3 1 . 1 4 2 Ballistic Cannon 5 | . . . 1 . 2 2 . Launcher 2 | . . 1 1 . . . . Special Weapon 3 | . . 1 . . 2 . . Impact Weapon . | . . . . . . . . Slashing Weapon . | . . . . . . . . Piercing Weapon . | . . . . . . . . Special Melee Weapon . | . . . . . . . . Unidentified Prototypes 9 | . . 1 1 . 2 1 4 Corrupted Parts 1 | . . . . . . 1 . System Corruption 1 | . . . . . . 1 . Parts Lost 30 | . . 2 2 . 1 10 15 Power 3 | . . . 1 . . . 2 Propulsion 4 | . . . . . . 1 3 Utility 11 | . . . . . 1 3 7 Weapon 12 | . . 2 1 . . 6 3 Highest Loss Streak 10 | . . 1 1 . 1 4 10 To Critical Strikes . | . . . . . . . . Average Slot Usage (%) 93 | . 100 99 98 100 92 86 83 Engine 3 | . 14 14 . . 4 . . Core 4 | . . . 13 14 . 1 . Reactor 1 | . . . . . 1 4 4 Treads 2 | . . . . . 6 4 3 Leg 13 | . 28 28 28 13 . 1 5 Wheel 2 | . . . . 13 5 2 . Device 17 | . 14 14 13 14 24 21 14 Storage 10 | . 14 14 14 14 6 6 6 Processor 5 | . . . . . 8 13 19 Protection 5 | . . . . . 12 10 10 Energy Gun 1 | . . . . . 1 4 9 Energy Cannon 2 | . . . . . 6 5 1 Ballistic Gun 10 | . 28 10 14 14 6 5 3 Ballistic Cannon 4 | . . . 6 14 3 2 . Launcher 2 | . . 10 5 . . . . Naked Turns . | . . . . . . . . Heaviest Build 70 | 13 18 19 27 21 70 69 67 Greatest Support 80 | 20 20 20 20 20 50 41 80 Greatest Overweight (x) 6 | . . . 1 2 6 6 3 Average Overweight (x) 1 | . . . . 1 4 1 . Largest Inventory Capacity 15 | 8 10 10 10 10 15 15 15 Average Capacity 11 | 8 9 10 10 10 12 15 15 Most Carried 15 | 7 10 10 10 10 15 15 15 Average Carried 11 | 5 8 9 9 9 10 14 13 Final Capacity 15 | 8 10 10 10 10 15 15 15 Final Carried 15 | 7 10 10 10 10 13 15 13 Scrap Engine Consumption 82 | . . . . . 18 61 3 Constructs Created 7 | . . . . . 2 4 1 Constructs Modified 25 | . . . . . 3 21 1 Class Distribution -------------------- 43% | Scavenger-Mutant 13% | Mutant 12% | Tank 11% | Scavenger-Tank 8% | Scavenger-Skirmisher 6% | Skirmisher Dominant Class ---------------- Mutant | -10/Materials Mutant | -10/Mines Scavenger-Mutant | -10/Subcaves Scavenger-Mutant | -8/Recycling Scavenger-Tank | -6/Factory Tank | -6/Extension Scavenger-Gunner | -6/Cetus Resources | -11 -10 -10 -10 -8 -6 -6 -6 ----------- Run | Yrd Mat Min Sub Rec Fac Ext Cet Matter Collected 3243 | 244 508 450 196 101 594 889 261 Remotely 128 | . . . . . 128 . . Salvage Created 4101 | 113 453 102 23 136 671 1798 805 Parts 158 | 6 27 4 2 7 25 56 31 Haulers Intercepted 6 | . 2 . . . 1 3 . Recyclers Shooed 3 | 1 . . . . 1 1 . Parts Field Recycled . | . . . . . . . . Retrieved Matter . | . . . . . . . . Parts Self-Destructed 5 | . . . 5 . . . . Prevented . | . . . . . . . . Kills | -11 -10 -10 -10 -8 -6 -6 -6 ------- Run | Yrd Mat Min Sub Rec Fac Ext Cet Combat Hostiles Destroyed 69 | . 10 9 2 1 11 23 13 Guns 37 | . 10 4 . . 6 8 9 Cannons 20 | . . . . 1 5 11 3 AOE 7 | . . 5 2 . . . . Classes Destroyed 16 | 2 5 2 1 1 1 2 2 Worker 2 | . . 2 . . . . . Builder 2 | . 1 . . 1 . . . Tunneler 1 | 1 . . . . . . . Hauler 6 | . 2 . . . 1 3 . Recycler 5 | 1 . 1 . 1 . 2 . Watcher 2 | . 1 . . . . . 1 Swarmer 8 | . 3 . . . . 3 2 Grunt 32 | . 7 . . . 6 14 5 Brawler 1 | . . . . . . . 1 Duelist 1 | . . . . . . 1 . Sentry 5 | . . . . 1 . 4 . Hunter 2 | . . . . . . . 2 Programmer 5 | . . . . . 5 . . Behemoth 1 | . . . . . . 1 . Cetus Guard 3 | . . . . . . . 3 Subdweller 2 | . . . 2 . . . . Assembled 9 | . . 9 . . . . . Best Kill Streak 8 | 2 5 8 2 1 3 3 6 Combat Bots Only 6 | . 4 5 2 1 3 3 6 Max Kills in Single Turn 3 | 1 2 3 1 1 1 1 1 Gunslinging . | . . . . . . . . Exploded 1 | . . 1 1 . . . . Melee . | . . . . . . . . Uniques/NPCs Destroyed . | . . . . . . . . Combat | -11 -10 -10 -10 -8 -6 -6 -6 -------- Run | Yrd Mat Min Sub Rec Fac Ext Cet Hostile Shots Fired 790 | . 41 18 12 2 94 353 270 Missed 241 | . 16 8 3 1 23 136 54 Damage Taken 8157 | . 318 259 238 18 1159 1919 4246 Core 1026 | . 55 62 46 . 142 132 589 Absorbed by Shields 664 | . . . . . . 636 28 Reduced by Siege Mode 80 | . . . . . . . 80 Ignored by Resistances 78 | . . . . . 78 . . Regen/Repaired (Parts) 677 | . . . . . 174 503 . Core Remaining (%) 67 | 100 . . . 34 . . . Volleys Fired 311 | 4 44 25 10 10 66 102 50 Largest 3 | 2 2 2 2 2 3 3 3 Hottest 190 | 40 40 50 50 64 137 173 190 Shots Fired 605 | 8 88 26 14 20 147 199 103 Gun 389 | 8 88 14 8 10 78 102 81 Cannon 200 | . . . 2 10 69 97 22 Launcher 16 | . . 12 4 . . . . Special . | . . . . . . . . Kinetic 307 | 8 88 14 10 20 57 92 18 Thermal 264 | . . . . . 90 89 85 Explosive 16 | . . 12 4 . . . . Electromagnetic 18 | . . . . . . 18 . Robot Hit Streak 18 | 2 10 5 2 8 9 18 12 Robot Miss Streak 8 | 1 4 3 1 2 4 8 4 Penetration Max 2 | . . . . . 2 1 1 Secondary Targets 6 | . 3 . . . . . 3 Max Gunslinging Chain 1 | . 1 . . . . . 1 Shots Hit Robots 379 | 5 54 9 5 14 83 133 76 Core Hits 182 | 2 23 23 4 6 24 65 35 Critical Kills 8 | . . . . . 2 4 2 Critical Parts Destroyed 4 | . . . . . 1 1 2 Critical Strikes 17 | . . . . . 4 9 4 Meltdown 4 | . . . . . . 4 . Destroy 9 | . . . . . 3 2 4 Blast 4 | . . . . . 1 3 . Melee Attacks . | . . . . . . . . Impact . | . . . . . . . . Slashing . | . . . . . . . . Piercing . | . . . . . . . . Sneak Attacks . | . . . . . . . . Combat Hostiles . | . . . . . . . . Follow-up Attacks . | . . . . . . . . Damage Inflicted 9589 | 68 687 491 266 235 2308 3457 2077 Guns 5144 | 68 687 91 47 88 1273 1421 1469 Cannons 3826 | . . . . 147 1035 2036 608 Explosions 619 | . . 400 219 . . . . Melee . | . . . . . . . . Ramming . | . . . . . . . . Kinetic 4146 | 68 687 91 47 235 1033 1518 467 Thermal 4577 | . . . . . 1275 1692 1610 Explosive 619 | . . 400 219 . . . . Electromagnetic 247 | . . . . . . 247 . Impact . | . . . . . . . . Slashing . | . . . . . . . . Piercing . | . . . . . . . . Highest Corruption 1 | . . . . . 1 1 1 Average Corruption 1 | . . . . . 1 1 1 Corruption Purged 3 | . . . . . 1 1 1 Corruption Blocked . | . . . . . . . . Overload Shots 2 | . . . . . . 2 . Effects 1 | . . . . . . 1 . Heat Surge 1 | . . . . . . 1 . Overflow Damage 103 | . . 17 . 12 61 13 . Projectiles 86 | . . . . 12 61 13 . Explosions 17 | . . 17 . . . . . Melee . | . . . . . . . . Knockbacks 4 | . . . . 1 . 3 . Impact . | . . . . . . . . Kinetic 4 | . . . . 1 . 3 . Secondary . | . . . . . . . . Self-Inflicted Damage 46 | . . 46 . . . . . Shots 2 | . . 2 . . . . . Rammed . | . . . . . . . . Targets Rammed . | . . . . . . . . Kicked . | . . . . . . . . Crushed . | . . . . . . . . Highest Temperature 578 | 6 2 10 . 38 355 315 578 Average Temperature 95 | 6 2 10 . 18 69 64 174 Received Heat Transfer 2127 | . 138 40 42 . 355 589 963 Effects 13 | . . . . . 2 . 11 Shutdowns 2 | . . . . . . . 2 Interference 2 | . . . . . 2 . . Short Circuit 2 | . . . . . . . 2 Damage (major) 6 | . . . . . . . 6 Damage (core) 1 | . . . . . . . 1 Siege Activations 1 | . . . . . . . 1 Total Turns 49 | . . . . . . . 49 Longest Duration 49 | . . . . . . . 49 Robots Corrupted . | . . . . . . . . Combat Hostiles . | . . . . . . . . Parts Fried 3 | . . . . . . 3 . Impact Corruptions . | . . . . . . . . Robots Melted 6 | . . . . . . 5 1 Combat Hostiles 5 | . . . . . . 4 1 Parts Melted 19 | . . . . . 4 13 2 Heat Transferred 7198 | . . . . . 1964 3118 2116 Parts Sabotaged . | . . . . . . . . Parts Stolen . | . . . . . . . . Parts Stripped . | . . . . . . . . Power Chain Reactions . | . . . . . . . . Alert | -11 -10 -10 -10 -8 -6 -6 -6 ------- Run | Yrd Mat Min Sub Rec Fac Ext Cet Peak Influence 481 | 10 260 117 . 150 424 481 395 Initial 352 | . 6 84 . 70 352 100 268 Average 192 | 6 157 38 . 69 147 322 285 Maximum Alert Level 2 | . 1 . . . 2 2 2 Low Security (%) 51 | 100 49 100 . 100 71 11 . Level 1 34 | . 50 . . . 13 61 99 Level 2 13 | . . . . . 15 27 . Level 3 . | . . . . . . . . Level 4 . | . . . . . . . . Level 5 . | . . . . . . . . High Security . | . . . . . . . . Max Security . | . . . . . . . . Squads Dispatched 24 | . 6 . . . 10 6 2 Investigation 13 | . 3 . . . 4 4 2 Extermination 5 | . . . . . 5 . . Reinforcement 6 | . 3 . . . 1 2 . Assault . | . . . . . . . . Garrison . | . . . . . . . . Intercept . | . . . . . . . . Searches Triggered 1 | . . . . . 1 . . Construction Impeded 1 | . . . . . . 1 . Haulers Reinforced 1 | . . . . . 1 . . Active Scanning Responses . | . . . . . . . . Cargo Convoy Interrupts . | . . . . . . . . Stealth | -11 -10 -10 -10 -8 -6 -6 -6 --------- Run | Yrd Mat Min Sub Rec Fac Ext Cet Distress Signals 5 | . 1 . . . . 3 1 Communications Jammed . | . . . . . . . . Distress Signals . | . . . . . . . . Times Spotted 138 | . 20 15 12 2 19 48 22 Peak Tracking Total 8 | . 6 4 2 . 5 8 7 Tactical Retreats 9 | . 3 1 1 . . 3 1 Traps | -11 -10 -10 -10 -8 -6 -6 -6 ------- Run | Yrd Mat Min Sub Rec Fac Ext Cet Traps Triggered 9 | . 1 . 2 . 1 5 . Indirectly . | . . . . . . . . Trap Hack Attempts . | . . . . . . . . Triggered . | . . . . . . . . Disarmed . | . . . . . . . . Reprogrammed . | . . . . . . . . Reused . | . . . . . . . . Traps Extracted . | . . . . . . . . Installed . | . . . . . . . . Triggered . | . . . . . . . . Machines | -11 -10 -10 -10 -8 -6 -6 -6 ---------- Run | Yrd Mat Min Sub Rec Fac Ext Cet Machines Disabled 6 | . . . . . . 4 2 Max in Single Turn 1 | . . . . . . 1 1 Energy Cycler 1 | . . . . . . 1 . Machines Repaired 1 | . . . . . 1 . . Machines Dismantled . | . . . . . . . . Machines Sabotaged . | . . . . . . . . Overloaded Fab Kills . | . . . . . . . . Hacking | -11 -10 -10 -10 -8 -6 -6 -6 --------- Run | Yrd Mat Min Sub Rec Fac Ext Cet Machines Accessed 35 | . 5 . 1 12 7 8 2 Terminals 22 | . 3 . . 6 4 7 2 Fabricators . | . . . . . . . . Repair Stations 1 | . . . . . 1 . . Recycling Units 9 | . 2 . . 6 . 1 . Scanalyzers 2 | . . . . . 2 . . Garrison Access . | . . . . . . . . Total Hacks 97 | . 17 . 3 33 19 19 6 Successful 62 | . 11 . 3 25 13 8 2 Failed 34 | . 6 . . 7 6 11 4 Catastrophic 4 | . 1 . . 1 1 1 . Database Lockouts 1 | . . . . 1 . . . Manual 50 | . 13 . . 20 7 10 . Terminals 61 | . 10 . . 18 10 17 6 Fabricators . | . . . . . . . . Repair Stations 2 | . . . . . 2 . . Recycling Units 24 | . 7 . . 15 . 2 . Scanalyzers 7 | . . . . . 7 . . Garrison Access . | . . . . . . . . Terminal Hacks 19 | . 1 . 3 6 3 4 2 Record 6 | . . . 3 . . 1 2 Part Schematic 1 | . . . . 1 . . . Robot Analysis 1 | . . . . 1 . . . Prototype ID Bank 3 | . . . . 2 . 1 . Open DSF 1 | . . . . . 1 . . Branch Access Points 1 | . . . . . 1 . . Terminal Index 1 | . . . . . . 1 . Alert Level 1 | . . . . . . 1 . Unreport Threat 1 | . . . . 1 . . . Locate Traps 1 | . 1 . . . . . . Patrol Status 1 | . . . . . 1 . . Hauler Manifests 1 | . . . . 1 . . . Fabricator Hacks . | . . . . . . . . Repair Station Hacks 2 | . . . . . 2 . . Scan Component 1 | . . . . . 1 . . Repair 1 | . . . . . 1 . . Recycling Unit Hacks 11 | . 2 . . 8 . 1 . Report Inventory 9 | . 2 . . 6 . 1 . Retrieve Components 2 | . . . . 2 . . . Scanalyzer 6 | . . . . . 6 . . Insert Component 3 | . . . . . 3 . . Analyze 3 | . . . . . 3 . . Garrison Access Hacks . | . . . . . . . . Unauthorized Hacks 22 | . 7 . . 10 2 3 . Terminals 13 | . 4 . . 4 2 3 . Track 1 | . 1 . . . . . . Botnet 12 | . 3 . . 4 2 3 . Fabricators . | . . . . . . . . Repair Stations . | . . . . . . . . Recycling Units 9 | . 3 . . 6 . . . Reject 2 | . 2 . . . . . . Mask 1 | . 1 . . . . . . Tunnel 6 | . . . . 6 . . . Scanalyzers . | . . . . . . . . Garrison Access . | . . . . . . . . Data Cores Recovered . | . . . . . . . . Used . | . . . . . . . . Hacking Detections 20 | . 5 . . 5 3 5 2 Full Trace Events 12 | . 2 . . 1 3 4 2 Feedback Events 1 | . . . . . . . 1 Corruption 1 | . . . . . . . 1 Feedback Blocked . | . . . . . . . . Robot Schematics Acquired . | . . . . . . . . Robots Built . | . . . . . . . . Authchips . | . . . . . . . . Time . | . . . . . . . . Total Robot Build Rating . | . . . . . . . . Part Schematics Acquired 4 | . . . . 1 3 . . Parts Built . | . . . . . . . . Authchips . | . . . . . . . . Time . | . . . . . . . . Total Part Build Rating . | . . . . . . . . Parts Repaired 1 | . . . . . 1 . . Time 38 | . . . . . 38 . . Parts Recycled . | . . . . . . . . Recycled Matter . | . . . . . . . . Retrieved Matter . | . . . . . . . . Retrieved Components 12 | . . . . 12 . . . Parts Scanalyzed 3 | . . . . . 3 . . Part Schematics Acquired 3 | . . . . . 3 . . Parts Damaged 1 | . . . . . 1 . . Bothacking | -11 -10 -10 -10 -8 -6 -6 -6 ------------ Run | Yrd Mat Min Sub Rec Fac Ext Cet Used RIF Installer . | . . . . . . . . Robots Hacked . | . . . . . . . . Non-combat . | . . . . . . . . Combat . | . . . . . . . . Robot Hacks Applied . | . . . . . . . . Relay Couplers Released . | . . . . . . . . Fabnet Peak Effective % . | . . . . . . . . Robots Rewired 8 | . . . . . . 8 . Allies Hacked . | . . . . . . . . Hacks Repelled . | . . . . . . . . Allies | -11 -10 -10 -10 -8 -6 -6 -6 -------- Run | Yrd Mat Min Sub Rec Fac Ext Cet Total Allies 21 | . . 4 7 . . 10 . Largest Group 8 | . . 3 8 8 7 6 1 Highest-Rated Group 311 | . . 40 149 149 130 311 28 Highest-Rated Ally 159 | . . 31 19 19 19 159 28 Total Orders 7 | . . . . . . 7 . STAY 1 | . . . . . . 1 . FOLLOW 2 | . . . . . . 2 . EXPLORE 2 | . . . . . . 2 . RETURN 2 | . . . . . . 2 . Ally Attacks 220 | . . 5 40 3 31 136 5 Total Damage 4489 | . . 81 701 51 525 3026 105 Kills 41 | . . 3 5 2 7 23 1 Allies Corrupted . | . . . . . . . . Allies Melted 1 | . . . . . . 1 . Intel | -11 -10 -10 -10 -8 -6 -6 -6 ------- Run | Yrd Mat Min Sub Rec Fac Ext Cet Robot Analysis Total 1 | . . . . 1 . . . Derelict Logs Recovered 3 | . . 1 2 . . . . Drone Launches 3 | . . . . . . 3 . Drone Recoveries 3 | . . . . . . 3 . Exploration | -11 -10 -10 -10 -8 -6 -6 -6 ------------- Run | Yrd Mat Min Sub Rec Fac Ext Cet Turns Passed 11598 | 52 787 1123 2770 1100 2207 3123 436 Spaces Moved 6360 | 29 466 809 1699 927 981 1325 124 Core . | . . . . . . . . Treads 609 | . . . . . 51 516 42 Legs 3327 | 29 466 809 1699 10 . 232 82 Wheels 2424 | . . . . 917 930 577 . Hover . | . . . . . . . . Flight . | . . . . . . . . Fastest Speed 95 | 120 120 120 120 95 95 141 149 Average Speed 145 | 120 120 120 140 110 159 187 182 Slowest Speed 400 | 120 120 120 190 190 240 360 400 Overloaded Moves . | . . . . . . . . Propulsion Burnouts . | . . . . . . . . Robots Hopped . | . . . . . . . . Cave-ins Triggered . | . . . . . . . . Exploration Rate (%) 60 | 3 59 100 82 99 15 84 43 Regions Visited 7 Branch Regions 5 Pre-discovered Areas 6 | . . . . 6 . . . Known Exits Taken 2 | . . . . . 1 1 . Unknown Exits Taken 5 | 1 1 1 1 1 . . . Scrap Searched 8 | . . 1 7 . . . . Spaces Dug 27 | . . 11 . . 16 . . Terrain Destroyed 144 | . . 97 2 1 33 4 7 Melee . | . . . . . . . . Projectile 45 | . . . . 1 33 4 7 AOE 99 | . . 97 2 . . . . Terrain Rammed . | . . . . . . . . Walls Destroyed . | . . . . . . . . Machines Disabled . | . . . . . . . . Actions | -11 -10 -10 -10 -8 -6 -6 -6 --------- Run | Yrd Mat Min Sub Rec Fac Ext Cet Total 8158 | 38 610 936 2064 984 1497 1792 237 Wait 1109 | . 80 82 328 18 377 201 23 Move 6353 | 28 465 808 1698 926 980 1324 124 Hop . | . . . . . . . . Pick Up 69 | 2 9 5 3 7 17 21 5 Fast Attach 25 | 1 . 2 2 1 3 7 9 Attach 38 | 1 . 2 2 3 11 10 9 Detach 24 | 1 . 2 1 2 8 7 3 Swap 76 | . 3 5 11 2 20 25 10 Drop 67 | 1 9 5 7 9 13 19 4 Fire 311 | 4 44 25 10 10 66 102 50 Melee . | . . . . . . . . Ram . | . . . . . . . . Kick . | . . . . . . . . Crush . | . . . . . . . . Escape Stasis 9 | . . . . . . 9 . Rewire 75 | . . . 2 6 . 67 . Trap . | . . . . . . . . Miscellaneous 2 | . . . . . 2 . . Route ------- -11/Scrapyard -10/Materials (discovered 3 exits: [*Mat x2] / [*Min]) -10/Mines (discovered 3 exits: [*Mat x2] / *Sub) -10/Subcaves (discovered 3 exits: [*Mat x2] / *Rec) -8/Recycling -6/Factory (discovered 4 exits: Low x2 / *Ext x2) -6/Extension (discovered 3 exits: *Fac x2 / *Cet) -6/Cetus History --------- Turn | Location | Event 9 | -11/Scrapyard | Discovered new exit (range 3) 53 | -11/Scrapyard | Entered Materials 74 | -10/Materials | Discovered new exit (range 14) 323 | -10/Materials | Build established: Mutant 477 | -10/Materials | Discovered new exit (range 8) 500 | -10/Materials | Derelicts attacked the area 755 | -10/Materials | Discovered new exit (range 4) 840 | -10/Materials | Entered Mines 853 | -10/Mines | Discovered new exit (range 14) 856 | -10/Mines | Learned 8 Materials zone layouts 885 | -10/Mines | Assembled infested the area 890 | -10/Mines | Assisted by a Guerilla fighting off Assembled 923 | -10/Mines | Build established: Scavenger-Mutant 930 | -10/Mines | Received a Mining Laser from a helpful Derelict 1327 | -10/Mines | Found a damaged Exp. Sensor Array with a note attached 1330 | -10/Mines | Found Prototype Device 1330 | -10/Mines | Identified Exp. Sensor Array 1559 | -10/Mines | Discovered new exit (range 6) 1636 | -10/Mines | Build established: Mutant 1689 | -10/Mines | Assisted by bots powering up and referring to "LRC-V3" 1946 | -10/Mines | Discovered new exit (range 8) 1963 | -10/Mines | Entered Subcaves 1963 | -10/Subcaves | Accompanied by 3 allies 2004 | -10/Subcaves | Learned 8 Materials zone layouts 2064 | -10/Subcaves | Core integrity fell below 50% 2117 | -10/Subcaves | Discovered new exit (range 10) 2198 | -10/Subcaves | Build established: Scavenger-Mutant 2282 | -10/Subcaves | Visited triangular shrine 2290 | -10/Subcaves | Found Prototype Device 2290 | -10/Subcaves | Identified V3-11A's Pendant 2295 | -10/Subcaves | Befriended Subdweller 2540 | -10/Subcaves | Befriended Subdweller 2545 | -10/Subcaves | Befriended Subdweller 3365 | -10/Subcaves | Befriended Subdweller 3365 | -10/Subcaves | Befriended Subdweller 3439 | -10/Subcaves | Learned 2 Materials zone layouts 3616 | -10/Subcaves | Befriended Subdweller 4432 | -10/Subcaves | Befriended Subdweller 4585 | -10/Subcaves | Discovered new exit (range 15) 4638 | -10/Subcaves | Visited Clippyterm 4644 | -10/Subcaves | Learned Research machine intel 4653 | -10/Subcaves | Discovered new exit (range 15) 4733 | -10/Subcaves | Entered Recycling 4733 | -8/Recycling | Accompanied by 8 allies 4758 | -8/Recycling | Found Scrap Engine 4979 | -8/Recycling | Discovered new exit (range 4) 5833 | -8/Recycling | Entered Factory 5833 | -6/Factory | Accompanied by 7 allies 5833 | -6/Factory | Evolved 8 slots: Utility x7, Weapon x1 6183 | -6/Factory | Search patrols dispatched 6276 | -6/Factory | Build established: Scavenger-Tank 6373 | -6/Factory | Lost 6 allies 6690 | -6/Factory | Identified exit to Lower Caves 6690 | -6/Factory | Identified exit to Extension 6953 | -6/Factory | Repaired Hrd. Medium Armor Plating 7209 | -6/Factory | Build established: Tank 8040 | -6/Factory | Entered Extension 8130 | -6/Extension | Energy Cycler disabled 8130 | -6/Extension | Rescued a captive Derelict 8130 | -6/Extension | Rescued a captive Derelict 8131 | -6/Extension | Rescued A7 8131 | -6/Extension | Rescued a captive Derelict 8134 | -6/Extension | Rescued a captive Derelict 8672 | -6/Extension | Build established: Scavenger-Skirmisher 9093 | -6/Extension | Spotted B-75 Beast 9099 | -6/Extension | Spotted B-75 Beast 9125 | -6/Extension | Destroyed B-75 Beast 9131 | -6/Extension | Discovered new exit (range 15) 9139 | -6/Extension | Allies destroyed B-75 Beast 9161 | -6/Extension | Lost 4 allies 9390 | -6/Extension | Disrupted transfer network 9393 | -6/Extension | Build established: Tank 9649 | -6/Extension | Discovered new exit (range 16) 9650 | -6/Extension | Discovered new exit (range 15) 9702 | -6/Extension | Extracted ID and sensor layout for unrecognized location from A7's data core 9781 | -6/Extension | Identified exit to Factory 9803 | -6/Extension | Identified exit to Cetus 10155 | -6/Extension | Lost 4 parts (2u2w) 10985 | -6/Extension | Build established: Scavenger-Tank 11163 | -6/Extension | Entered Cetus 11163 | -6/Cetus | Accompanied by 1 ally 11189 | -6/Cetus | Spotted Cetus Guard 11189 | -6/Cetus | Spotted Cetus Guard 11201 | -6/Cetus | Spotted Cetus Guard 11208 | -6/Cetus | Allies destroyed Cetus Guard 11208 | -6/Cetus | Spotted Cetus Guard 11229 | -6/Cetus | Destroyed Cetus Guard 11238 | -6/Cetus | Destroyed Cetus Guard 11251 | -6/Cetus | Destroyed Cetus Guard 11274 | -6/Cetus | Lost 4 parts (2p2u) 11292 | -6/Cetus | Core integrity fell below 50% 11355 | -6/Cetus | Lost 10 parts (3n4u3w) 11562 | -6/Cetus | Cetus Manufacturing Module disabled 11578 | -6/Cetus | Core integrity fell below 20% 11599 | -6/Cetus | Destroyed by G-50 Soldier with Heavy Laser Last Messages --------------- 11577_ Overheating: Short circuit. 11578_ Overheating: Core damaged (-161). 11578_ B-48 Gladiator destroyed. 11579_ Acquired 73 matter. 11580_ Armor Integrity Analyzer broken. 11580_ Overheating: Short circuit. 11581_ Critical hit (Burn: +37). 11582_ Power failure, Antimatter-Fusion Reactor shutdown. 11583_ Overheating: Broken Adv. KE Penetrator damaged (-28). 11583_ Overheating: Lrg. Storage Unit damaged (-85). 11583_ Overheating: Centrium Medium Armor Plating damaged (-120). 11584_ Overheating: Plasma Rifle damaged (-10). 11584_ Overheating: Adv. Signal Interpreter damaged (-8). 11584_ Overheating: Lrg. Storage Unit damaged (-51). 11585_ Critical hit (Burn: +37). 11591_ Centrium Medium Armor Plating destroyed. 11595_ Critical hit (Burn: +37). 11597_ G-50 Soldier destroyed. 11597_ Switching to secondary target: G-50 Soldier. Map ----- +----------------------------------------------------+ | ?????????????????????????????????????????????????? | | ?????????????????????????????????????????????????? | | ?????????????????????????????????????????????????? | | ????? ?????????????????????????????????????????? | | ????# ?????????????????????????????????????????? | | ????# #????????????????????????????????????????? | | ????# #????????????????????????????????????????? | | ????# #????????????????????????????????????????? | | ????# #????????????????????????????????????????? | | ????# #????????????????????????????????????????? | | ????# #????????????????????????????????????????? | | ????# #????????????????"""""???????????????????? | | ????# #??????????#""""""""""""?????????????????? | | ????# #??????????#""""" """ """????????????????? | | ????# #??????????#""""""" """"""?#?????????????? | | ????# #????###???#""" " " """#?????????????? | | ????# ##?###"###?#" """ "" "#" ??????????? | | ##### "###!" ###" ??????????? | | % %%!= +%" ?????????? | | % %!%!% += ?????????? | | %![=%! %+* [== ????????? | | ###"#"#""""#[#= ###" %=g%% ?????????? | | ??###########"####?#" ""=%= """"""??????????????? | | ????????????###????######/g#######???????????????? | | ???????????????????#" " ![[! "#?????????????????? | | ???????????????????### *@[ """#?????????????????? | | ???????????????????#" = ""#?????????????????? | | ???????????????????###" """#?????????????????? | | ???????????????????#" "###?????????????????? | | ???????????????????#" """"#?????????????????? | | ???????????????????#" T"""#?????????????????? | | ???????????????????#" """"#?????????????????? | | ???????????????????### "###?????????????????? | | ???????????????????# """"#?????????????????? | | ???????????????????#" " T"""#?????????????????? | | ???????????????????#" """"#?????????????????? | | ???????????????????#" " " #"###?????????????????? | | ???????????????????# #""???????????????????? | | ???????????????????#""" """#"""??????????????????? | | ???????????????????#########?????????????????????? | | ?????????????????????????????????????????????????? | | ?????????????????????????????????????????????????? | | ?????????????????????????????????????????????????? | | ?????????????????????????????????????????????????? | | ?????????????????????????????????????????????????? | | ?????????????????????????????????????????????????? | | ?????????????????????????????????????????????????? | | ?????????????????????????????????????????????????? | | | | | +----------------------------------------------------+ Best States ------------- Heat Dissipation 68 Energy Generation 25 Energy Capacity 550 Matter Stores 300 Matter Capacity 300 Sight Range 16 Robot Scan Range 20 Terrain Scan Range 16 Terrain Scan Density 210 Additional Mass Support 12 Armor Coverage 900 Resistance: KI 20 Resistance: TH 20 Evasion (%) 55 Target Analysis 5 Armor Integrity Analysis 30 Recoil Reduction 2 Offensive Hacking 14 Item Schematics ----------------- Huge Storage Unit | -8/Recycling | Hacked Hrd. Medium Armor Plating | -6/Factory | Scanalyzed Lrn. Tractor Beam | -6/Factory | Scanalyzed Thermal Shield | -6/Factory | Scanalyzed Robot Schematics ------------------ None Fabricated ------------ Nothing Alien Tech Used ----------------- None Achievements -------------- I Survived The Infestation Prison Break Challenges ------------ None Game ------ Seed VortexMagneticMantle Manual? 0 Play Time 03:07:48 Cumulative 81.0 hours Start 2024.05.07 @ 23:00:54 End 2024.05.09 @ 19:08:54 Sessions 13 Manual Loads 0 Difficulty Rogue Special Mode None Game No. 16 Rogue 10 Adventurer 6 Explorer 0 Win Type - Total 1 Types 1/0/0/0/0/0/0/0/0 Lore% 31 Gallery% 41 Achievement% 35 Wizard Run 0 Options --------- Layout 0 ASCII 0 Keyboard 1 Movement Vi Keybinds 0 Fullscreen 1 Font 18/SmallcapsGlow Map View 66x52 Zoom Use 0% Tactical HUD 1 Map Filters NONE Filters NONE Steam 0 RUN: c1e966e3-a161-4755-bc46-fdfd3493b12c